fUST/lending_fUST_20250408
["ID","MTS","AMOUNT","RATE_DAILY","PERIOD"]
[357398473,1744043459271,-500.0,0.00027671,7]
[357398474,1744043459282,-501.20234767,0.00027671,7]
[357398475,1744043459292,-500.0,0.00027671,7]
[357398476,1744043459302,-500.0,0.00027671,7]
[357398477,1744043459311,-2735.19,0.00027671,7]
[357398478,1744043459321,-500.0,0.00027671,7]
[357398479,1744043459331,-500.0,0.00027671,7]
[357398480,1744043459341,-500.0,0.00027671,7]
[357398481,1744043459353,-500.0,0.00027671,7]
[357398482,1744043459362,-755.84,0.00027671,7]
[357398483,1744043459483,-500.0,0.00027671,7]
[357398484,1744043459493,-1545.4,0.00027671,7]
[357398485,1744043459503,-292.06960756,0.00027671,7]
[357398486,1744043459513,-2604.92,0.00027671,7]
[357398487,1744043459523,-500.0,0.00027671,7]
[357398488,1744043459533,-500.0,0.00027671,7]
[357398489,1744043459543,-500.0,0.00027671,7]
[357398490,1744043459554,-500.0,0.00027671,7]
[357398491,1744043459571,-500.0,0.00027671,7]
[357398492,1744043459581,-821.95,0.00027671,7]
[357398493,1744043459592,-500.0,0.00027671,7]
[357398494,1744043459603,-500.0,0.00027671,7]
[357398495,1744043459612,-1832.26,0.00027671,7]
[357398496,1744043459624,-670.664981,0.00027671,7]
[357398497,1744043459636,-670.664981,0.00027671,7]
[357398498,1744043459649,-670.664981,0.00027671,7]
[357398499,1744043459661,-500.0,0.00027671,7]
[357398500,1744043459672,-500.0,0.00027671,7]
[357398501,1744043459682,-500.0,0.00027671,7]
[357398502,1744043459692,-3142.48,0.00027671,7]
[357398503,1744043459702,-670.664981,0.00027671,7]
[357398504,1744043459712,-500.0,0.00027671,7]
[357398505,1744043459722,-500.0,0.00027671,7]
[357398506,1744043459731,-670.664981,0.00027671,7]
[357398507,1744043459741,-670.664981,0.00027671,7]
[357398508,1744043459751,-641.79,0.00027671,7]
[357398509,1744043459760,-554.16,0.00027671,7]
[357398510,1744043459772,-500.0,0.00027671,7]
[357398511,1744043459782,-500.0,0.00027671,7]
[357398512,1744043459792,-1065.57,0.00027671,7]
[357398513,1744043459801,-507.8426224,0.00027671,7]
[357398514,1744043459811,-518.83755245,0.00027671,7]
[357398515,1744043459820,-500.0,0.00027671,7]
[357398516,1744043459829,-500.0,0.00027671,7]
[357398517,1744043459839,-616.76,0.00027671,7]
[357398518,1744043459849,-514.63,0.00027671,7]
[357398519,1744043459859,-508.1,0.00027671,7]
[357398520,1744043459868,-3034.79,0.00027671,7]
[357398521,1744043459878,-1680.31,0.00027671,7]
[357398522,1744043459888,-500.0,0.00027671,7]
[357398523,1744043459897,-587.24,0.00027671,7]
[357398524,1744043459910,-500.0,0.00027671,7]
[357398525,1744043459920,-500.0,0.00027671,7]
[357398526,1744043459929,-500.0,0.00027671,7]
[357398527,1744043459939,-1741.21,0.00027671,7]
[357398528,1744043459949,-815.25,0.00027671,7]
[357398529,1744043459959,-500.0,0.00027671,7]
[357398530,1744043459969,-1044.8,0.00027671,7]
[357398531,1744043459979,-500.0,0.00027671,7]
[357398532,1744043459989,-597.57,0.00027671,7]
[357398533,1744043459998,-500.0,0.00027671,7]
[357398534,1744043460008,-532.39,0.00027671,7]
[357398535,1744043460018,-500.0,0.00027671,7]
[357398536,1744043460028,-884.78,0.00027671,7]
[357398537,1744043460038,-500.0,0.00027671,7]
[357398538,1744043460048,-500.0,0.00027671,7]
[357398539,1744043460058,-500.0,0.00027671,7]
[357398540,1744043460068,-1065.11,0.00027671,7]
[357398541,1744043460078,-500.0,0.00027671,7]
[357398542,1744043460088,-500.0,0.00027671,7]
[357398543,1744043460098,-500.0,0.00027671,7]
[357398544,1744043460108,-500.0,0.00027671,7]
[357398545,1744043460118,-500.0,0.00027671,7]
[357398546,1744043460128,-500.0,0.00027671,7]
[357398547,1744043460138,-500.0,0.00027671,7]
[357398548,1744043460151,-500.0,0.00027671,7]
[357398549,1744043460161,-500.0,0.00027671,7]
[357398550,1744043460170,-500.0,0.00027671,7]
[357398551,1744043460180,-1961.24,0.00027671,7]
[357398552,1744043460190,-500.0,0.00027671,7]
[357398553,1744043460199,-500.0,0.00027671,7]
[357398554,1744043460210,-539.59,0.00027671,7]
[357398555,1744043460220,-500.0,0.00027671,7]
[357398556,1744043460230,-500.0,0.00027671,7]
[357398557,1744043460240,-500.0,0.00027671,7]
[357398558,1744043460250,-500.0,0.00027671,7]
[357398559,1744043460267,-500.0,0.00027671,7]
[357398560,1744043460277,-676.39,0.00027671,7]
[357398561,1744043460287,-500.0,0.00027671,7]
[357398562,1744043460297,-817.68,0.00027671,7]
[357398563,1744043460308,-500.0,0.00027671,7]
[357398564,1744043460317,-500.0,0.00027671,7]
[357398565,1744043460327,-500.0,0.00027671,7]
[357398566,1744043460337,-500.0,0.00027671,7]
[357398567,1744043460346,-549.74,0.00027671,7]
[357398568,1744043460356,-500.0,0.00027671,7]
[357398569,1744043460366,-500.0,0.00027671,7]
[357398570,1744043460376,-386.04044607,0.00027671,7]
[357398571,1744043460386,-2045.97,0.00027671,7]
[357398572,1744043460397,-4755.06,0.00027671,7]
[357398573,1744043460410,-500.0,0.00027671,7]
[357398574,1744043460420,-500.0,0.00027671,7]
[357398575,1744043460431,-500.0,0.00027671,7]
[357398576,1744043460441,-500.0,0.00027671,7]
[357398577,1744043460451,-2479.65,0.00027671,7]
[357398578,1744043460461,-1969.04,0.00027671,7]
[357398579,1744043460471,-500.0,0.00027671,7]
[357398580,1744043460481,-3369.17,0.00027671,7]
[357398581,1744043460491,-500.0,0.00027671,7]
[357398582,1744043460502,-500.0,0.00027671,7]
[357398583,1744043460512,-500.0,0.00027671,7]
[357398584,1744043460521,-1411.41,0.00027671,7]
[357398585,1744043460531,-500.0,0.00027671,7]
[357398586,1744043460541,-576.77,0.00027671,7]
[357398587,1744043460551,-504.17712655,0.00027671,7]
[357398588,1744043460561,-500.0,0.00027671,7]
[357398589,1744043460571,-500.0,0.00027671,7]
[357398590,1744043460581,-921.03,0.00027671,7]
[357398591,1744043460591,-1048.24391894,0.00027671,7]
[357398592,1744043460601,-506.66,0.00027671,7]
[357398593,1744043460610,-500.0,0.00027671,7]
[357398594,1744043460620,-500.0,0.00027671,7]
[357398595,1744043460630,-500.0,0.00027673,5]
[357398596,1744043460639,-500.0,0.00027673,5]
[357398597,1744043460652,-500.0,0.00027673,5]
[357398598,1744043460661,-500.0,0.00027673,5]
[357398599,1744043460671,-500.0,0.00027673,5]
[357398600,1744043460680,-3302.515263,0.00027673,7]
[357398601,1744043460690,-151.0,0.00027673,7]
[357398602,1744043460699,-221.399843,0.00027673,7]
[357398603,1744043460709,-221.399843,0.00027673,7]
[357398604,1744043460719,-587.521375,0.00027673,7]
[357398605,1744043460728,-587.521375,0.00027673,7]
[357398606,1744043460738,-151.0,0.00027673,7]
[357398607,1744043460747,-5290.00951875,0.00027831,7]
[357398608,1744043460756,-151.0,0.000279,17]
[357398609,1744043460766,-228.360533,0.00027935,7]
[357398610,1744043460775,-228.360533,0.00027935,7]
[357398611,1744043460785,-151.0,0.00027945,7]
[357398612,1744043460795,-151.0,0.00027945,7]
[357398613,1744043460804,-151.0,0.00027945,7]
[357398614,1744043460813,-151.0,0.00027945,7]
[357398615,1744043460823,-151.0,0.00027945,7]
[357398616,1744043460832,-248.967649,0.00027945,7]
[357398617,1744043460841,-248.967649,0.00027945,7]
[357398618,1744043460850,-151.0,0.00027945,7]
[357398619,1744043460860,-151.0,0.00027945,7]
[357398620,1744043460869,-151.0,0.00027945,7]
[357398621,1744043460879,-248.967649,0.00027945,7]
[357398622,1744043460888,-248.967649,0.00027945,7]
[357398623,1744043460898,-228.360533,0.00027945,7]
[357398624,1744043460911,-228.360533,0.00027945,7]
[357398625,1744043460920,-151.0,0.00027945,7]
[357398626,1744043460930,-151.0,0.00027945,7]
[357398627,1744043460941,-565.084417,0.00027945,7]
[357398628,1744043460951,-565.084417,0.00027945,7]
[357398629,1744043460961,-565.084417,0.00027945,7]
[357398630,1744043460970,-565.084417,0.00027945,7]
[357398631,1744043460979,-565.084417,0.00027945,7]
[357398632,1744043460989,-565.084417,0.00027945,7]
[357398633,1744043460999,-654.175396,0.00027945,7]
[357398634,1744043461009,-654.175396,0.00027945,7]
[357398635,1744043461018,-654.175396,0.00027945,7]
[357398636,1744043461027,-151.0,0.00027945,3]
[357398637,1744043461037,-151.0,0.00027945,3]
[357398638,1744043461046,-151.0,0.00027945,3]
[357398639,1744043461056,-151.0,0.00027945,3]
[357398640,1744043461065,-151.0,0.00027945,3]
[357398641,1744043461074,-286.921448,0.00027945,3]
[357398642,1744043461084,-1189.960806,0.00027945,7]
[357398643,1744043461093,-1189.960806,0.00027945,7]
[357398644,1744043461103,-1189.960806,0.00027945,7]
[357398645,1744043461113,-1189.960806,0.00027945,7]
[357398646,1744043461123,-1189.960806,0.00027945,7]
[357398647,1744043461132,-1189.960806,0.00027945,7]
[357398648,1744043461142,-151.0,0.00027945,7]
[357398649,1744043461155,-151.0,0.00027945,7]
[357398650,1744043461164,-298.069046,0.00027945,7]
[357398651,1744043461174,-157.252656,0.00027945,7]
[357398652,1744043461280,-3302.515263,0.00027945,7]
[357398653,1744043461297,-3302.515263,0.00027945,7]
[357398654,1744043461306,-500.0,0.00027945,7]
[357398655,1744043461317,-641.50659228,0.00027945,7]
[357398656,1744043461327,-151.0,0.00027945,7]
[357398657,1744043461336,-151.0,0.00027945,7]
[357398658,1744043461346,-500.0,0.00027945,7]
[357398659,1744043461356,-151.0,0.00027945,7]
[357398660,1744043461367,-500.0,0.00027945,7]
[357398661,1744043461376,-500.0,0.00027945,7]
[357398662,1744043461386,-151.0,0.00027945,7]
[357398663,1744043461396,-151.0,0.00027945,7]
[357398664,1744043461410,-166.279552,0.00027945,7]
[357398665,1744043461420,-500.0,0.00027945,7]
[357398666,1744043461430,-500.0,0.00027945,7]
[357398667,1744043461440,-500.0,0.00027945,7]
[357398668,1744043461450,-151.0,0.00027945,7]
[357398669,1744043461459,-293.171602,0.00027945,7]
[357398670,1744043461469,-500.0,0.00027945,7]
[357398671,1744043461479,-500.0,0.00027945,7]
[357398672,1744043461488,-500.0,0.00027945,7]
[357398673,1744043461498,-500.0,0.00027945,7]
[357398674,1744043461507,-500.0,0.00027945,7]
[357398675,1744043461517,-500.0,0.00027945,7]
[357398676,1744043461527,-500.0,0.00027945,7]
[357398677,1744043461536,-338.73976632,0.00027945,7]
[357398678,1744043461545,-500.0,0.00027945,7]
[357398679,1744043461555,-500.0,0.00027945,7]
[357398680,1744043461565,-500.0,0.00027945,7]
[357398681,1744043461575,-503.16545624,0.00027945,7]
[357398682,1744043461585,-500.0,0.00027945,7]
[357398683,1744043461594,-500.0,0.00027945,7]
[357398684,1744043461604,-500.0,0.00027945,7]
[357398685,1744043461613,-500.0,0.00027945,7]
[357398686,1744043461623,-500.0,0.00027945,7]
[357398687,1744043461633,-550.62,0.00027945,7]
[357398688,1744043461642,-500.0,0.00027945,7]
[357398689,1744043461654,-503.73616726,0.00027945,7]
[357398690,1744043461664,-1511.726349,0.00027945,7]
[357398691,1744043461674,-500.0,0.00027945,7]
[357398692,1744043461683,-1511.726349,0.00027945,7]
[357398693,1744043461693,-1511.726349,0.00027945,7]
[357398694,1744043461703,-500.0,0.00027945,7]
[357398695,1744043461712,-1511.726349,0.00027945,7]
[357398696,1744043461721,-1511.726349,0.00027945,7]
[357398697,1744043461731,-1511.726344,0.00027945,7]
[357398698,1744043461741,-500.0,0.00027945,7]
[357398699,1744043461751,-500.0,0.00027945,7]
[357398700,1744043461760,-151.0,0.00027945,7]
[357398701,1744043461769,-151.0,0.00027945,7]
[357398702,1744043461779,-1032.64,0.00027945,7]
[357398703,1744043461789,-585.28,0.00027945,7]
[357398704,1744043461798,-500.0,0.00027945,7]
[357398705,1744043461808,-500.0,0.00027945,7]
[357398706,1744043461818,-157.545006,0.00027945,7]
[357398707,1744043461829,-157.545006,0.00027945,7]
[357398708,1744043461837,-157.545006,0.00027945,7]
[357398709,1744043461847,-157.545006,0.00027945,7]
[357398710,1744043461856,-410.375889,0.00027945,7]
[357398711,1744043461865,-410.375889,0.00027945,7]
[357398712,1744043461874,-157.545006,0.00027945,7]
[357398713,1744043461883,-500.0,0.00027945,7]
[357398714,1744043461892,-410.375889,0.00027945,7]
[357398715,1744043461904,-157.545006,0.00027945,7]
[357398716,1744043461914,-500.0,0.00027945,7]
[357398717,1744043461925,-590.79,0.00027945,7]
[357398718,1744043461935,-410.375889,0.00027945,7]
[357398719,1744043461945,-410.375889,0.00027945,7]
[357398720,1744043461955,-410.375894,0.00027945,7]
[357398721,1744043461964,-500.0,0.00027945,7]
[357398722,1744043461975,-500.0,0.00027945,7]
[357398723,1744043461986,-500.0,0.00027945,7]
[357398724,1744043461997,-449.804052,0.00027945,7]
[357398725,1744043462007,-449.804052,0.00027945,7]
[357398726,1744043462017,-202.856287,0.00027945,7]
[357398727,1744043462028,-449.804056,0.00027945,7]
[357398728,1744043462038,-500.0,0.00027945,7]
[357398729,1744043462048,-202.856287,0.00027945,7]
[357398730,1744043462058,-202.856287,0.00027945,7]
[357398731,1744043462068,-500.0,0.00027945,7]
[357398732,1744043462088,-500.0,0.00027945,7]
[357398733,1744043462111,-202.856287,0.00027945,7]
[357398734,1744043462132,-202.856287,0.00027945,7]
[357398735,1744043462156,-202.856287,0.00027945,7]
[357398736,1744043462179,-500.0,0.00027945,7]
[357398737,1744043462196,-265.65774636,0.00027945,7]
[357398738,1744043462219,-500.0,0.00027945,7]
[357398739,1744043462236,-328.29207539,0.00027945,7]
[357398740,1744043462256,-500.0,0.00027945,7]
[357398741,1744043462278,-500.0,0.00027945,7]
[357398742,1744043462299,-500.0,0.00027945,7]
[357398743,1744043462316,-500.0,0.00027945,7]
[357398744,1744043462338,-500.0,0.00027945,7]
[357398745,1744043462353,-500.0,0.00027945,7]
[357398746,1744043462371,-1074.42,0.00027945,7]
[357398747,1744043462386,-809.17,0.00027945,7]
[357398748,1744043462404,-500.0,0.00027945,7]
[357398749,1744043462421,-500.0,0.00027945,7]
[357398750,1744043462438,-545.1,0.00027945,7]
[357398751,1744043462454,-555.94,0.00027945,7]
[357398752,1744043462471,-500.0,0.00027945,7]
[357398753,1744043462487,-500.0,0.00027945,2]
[357398754,1744043462503,-333.99251808,0.00027945,7]
[357398755,1744043462519,-151.0,0.00027945,7]
[357398756,1744043462535,-151.0,0.00027945,7]
[357398757,1744043462550,-151.0,0.00027945,7]
[357398758,1744043462565,-516.53482875,0.00027945,7]
[357398759,1744043462579,-500.0,0.00027945,7]
[357398760,1744043462596,-500.0,0.00027945,7]
[357398761,1744043462610,-500.0,0.00027945,7]
[357398762,1744043462626,-706.42,0.00027945,7]
[357398763,1744043462643,-500.0,0.00027945,7]
[357398764,1744043462659,-1000.0,0.00027945,7]
[357398765,1744043462675,-500.0,0.00027945,7]
[357398766,1744043462691,-500.0,0.00027945,7]
[357398767,1744043462707,-634.12,0.00027945,7]
[357398768,1744043462724,-221.399843,0.00027945,7]
[357398769,1744043462739,-221.399843,0.00027945,7]
[357398770,1744043462757,-221.399843,0.00027945,7]
[357398771,1744043462774,-500.0,0.00027945,7]
[357398772,1744043462790,-221.399843,0.00027945,7]
[357398773,1744043462805,-500.0,0.00027945,7]
[357398774,1744043462820,-212.36355663,0.00027945,7]
[357398775,1744043462836,-651.83,0.00027945,7]
[357398776,1744043462851,-568.10605706,0.00027945,7]
[357398777,1744043462867,-504.10274257,0.00027945,7]
[357398778,1744043462883,-500.0,0.00027945,7]
[357398779,1744043462898,-500.0,0.00027945,7]
[357398780,1744043462917,-500.0,0.00027945,7]
[357398781,1744043462932,-500.0,0.00027945,7]
[357398782,1744043462947,-500.0,0.00027945,7]
[357398783,1744043462963,-805.7,0.00027945,7]
[357398784,1744043462979,-500.0,0.00027945,7]
[357398785,1744043462993,-500.0,0.00027945,7]
[357398786,1744043463009,-617.33821747,0.00027945,7]
[357398787,1744043463025,-500.0,0.00027945,7]
[357398788,1744043463039,-500.0,0.00027945,7]
[357398789,1744043463055,-377.2187649,0.00027945,7]
[357398790,1744043463073,-151.0,0.00027945,7]
[357398791,1744043463089,-151.0,0.00027945,7]
[357398792,1744043463106,-151.0,0.00027945,7]
[357398793,1744043463121,-500.0,0.00027945,7]
[357398794,1744043463137,-152.460907,0.00027945,7]
[357398795,1744043463153,-500.0,0.00027945,7]
[357398796,1744043463169,-500.0,0.00027945,7]
[357398797,1744043463186,-500.0,0.00027945,7]
[357398798,1744043463201,-200.0,0.00027945,7]
[357398799,1744043463217,-587.521375,0.00027945,7]
[357398800,1744043463232,-553.94657099,0.00027945,7]
[357398801,1744043463242,-587.521375,0.00027945,7]
[357398802,1744043463253,-500.0,0.00027945,7]
[357398803,1744043463264,-500.0,0.00027945,7]
[357398804,1744043463280,-587.521375,0.00027945,7]
[357398805,1744043463292,-500.0,0.00027945,7]
[357398806,1744043463304,-500.0,0.00027945,7]
[357398807,1744043463314,-587.521375,0.00027945,7]
[357398808,1744043463325,-500.0,0.00027945,7]
[357398809,1744043463574,-521.55,0.00027945,7]
[357398810,1744043463591,-595.14,0.00027945,7]
[357398811,1744043463600,-500.0,0.00027945,7]
[357398812,1744043463610,-500.0,0.00027945,7]
[357398813,1744043463620,-500.0,0.00027945,7]
[357398814,1744043463630,-165.38432846,0.00027945,7]
[357398815,1744043463641,-151.0,0.00027945,7]
[357398816,1744043463651,-500.0,0.00027945,7]
[357398817,1744043463663,-151.0,0.00027945,7]
[357398818,1744043463672,-151.0,0.00027945,7]
[357398819,1744043463682,-500.0,0.00027945,7]
[357398820,1744043463692,-151.0,0.00027945,7]
[357398821,1744043463702,-151.0,0.00027945,7]
[357398822,1744043463712,-151.0,0.00027945,7]
[357398823,1744043463721,-579.739422,0.00027945,7]
[357398824,1744043463731,-579.739422,0.00027945,7]
[357398825,1744043463740,-579.739422,0.00027945,7]
[357398826,1744043463749,-500.0,0.00027945,7]
[357398827,1744043463759,-579.739422,0.00027945,7]
[357398828,1744043463769,-579.739422,0.00027945,7]
[357398829,1744043463779,-579.739422,0.00027945,7]
[357398830,1744043463789,-629.56,0.00027945,7]
[357398831,1744043463799,-500.0,0.00027945,7]
[357398832,1744043463809,-500.0,0.00027945,7]
[357398833,1744043463818,-500.0,0.00027945,7]
[357398834,1744043463828,-500.0,0.00027945,7]
[357398835,1744043463837,-500.0,0.00027945,7]
[357398836,1744043463848,-151.0,0.00027945,7]
[357398837,1744043463858,-151.0,0.00027945,7]
[357398838,1744043463868,-151.0,0.00027945,7]
[357398839,1744043463878,-500.0,0.00027945,7]
[357398840,1744043463887,-803.46,0.00027945,7]
[357398841,1744043463897,-500.0,0.00027945,7]
[357398842,1744043463907,-568.37,0.00027945,7]
[357398843,1744043463917,-500.0,0.00027945,7]
[357398844,1744043463926,-500.0,0.00027945,7]
[357398845,1744043463935,-500.0,0.00027945,7]
[357398846,1744043463945,-500.0,0.00027945,7]
[357398847,1744043463954,-167.063115,0.00027945,7]
[357398848,1744043463964,-167.063115,0.00027945,7]
[357398849,1744043463973,-500.0,0.00027945,7]
[357398850,1744043463982,-167.063115,0.00027945,7]
[357398851,1744043463992,-151.0,0.00027945,7]
[357398852,1744043464001,-500.0,0.00027945,7]
[357398853,1744043464010,-151.0,0.00027945,7]
[357398854,1744043464020,-167.063115,0.00027945,7]
[357398855,1744043464029,-167.063115,0.00027945,7]
[357398856,1744043464039,-167.063115,0.00027945,7]
[357398857,1744043464049,-500.0,0.00027945,7]
[357398858,1744043464058,-715.09,0.00027945,7]
[357398859,1744043464068,-500.0,0.00027945,7]
[357398860,1744043464078,-696.36,0.00027945,7]
[357398861,1744043464089,-500.0,0.00027945,7]
[357398862,1744043464099,-500.0,0.00027945,7]
[357398863,1744043464109,-853.51,0.00027945,7]
[357398864,1744043464118,-500.0,0.00027945,3]
[357398865,1744043464128,-500.0,0.00027945,7]
[357398866,1744043464138,-1131.28,0.00027945,7]
[357398867,1744043464148,-500.0,0.00027945,7]
[357398868,1744043464162,-501.92872497,0.00027945,7]
[357398869,1744043464173,-500.0,0.00027945,7]
[357398870,1744043464183,-500.0,0.00027945,7]
[357398871,1744043464194,-500.0,0.00027945,7]
[357398872,1744043464205,-584.17,0.00027945,7]
[357398873,1744043464215,-807.39,0.00027945,7]
[357398874,1744043464226,-868.68,0.00027945,7]
[357398875,1744043464236,-621.99459629,0.00027945,7]
[357398876,1744043464246,-558.01,0.00027945,7]
[357398877,1744043464256,-500.0,0.00027945,7]
[357398878,1744043464270,-500.0,0.00027945,7]
[357398879,1744043464280,-500.0,0.00027945,7]
[357398880,1744043464290,-500.0,0.00027945,7]
[357398881,1744043464302,-500.0,0.00027945,7]
[357398882,1744043464312,-500.0,0.00027945,7]
[357398883,1744043464322,-500.0,0.00027945,7]
[357398884,1744043464332,-500.0,0.00027945,7]
[357398885,1744043464342,-518.2504023,0.00027945,7]
[357398886,1744043464354,-500.0,0.00027945,7]
[357398887,1744043464365,-500.0,0.00027945,7]
[357398888,1744043464375,-500.0,0.00027945,7]
[357398889,1744043464385,-519.04,0.00027945,7]
[357398890,1744043464395,-500.0,0.00027945,7]
[357398891,1744043464408,-500.0,0.00027945,7]
[357398892,1744043464418,-541.28,0.00027945,7]
[357398893,1744043464427,-500.0,0.00027945,7]
[357398894,1744043464437,-625.14,0.00027945,7]
[357398895,1744043464447,-613.56,0.00027945,7]
[357398896,1744043464456,-738.73,0.00027945,7]
[357398897,1744043464466,-500.0,0.00027945,7]
[357398898,1744043464476,-500.0,0.00027945,7]
[357398899,1744043464485,-500.0,0.00027945,7]
[357398900,1744043464495,-921.42,0.00027945,7]
[357398901,1744043464505,-500.0,0.00027945,7]
[357398902,1744043464515,-500.0,0.00027945,7]
[357398903,1744043464525,-500.0,0.00027945,7]
[357398904,1744043464535,-1031.34,0.00027945,7]
[357398905,1744043464544,-500.0,0.00027945,7]
[357398906,1744043464554,-954.0,0.00027945,7]
[357398907,1744043464564,-537.66,0.00027945,7]
[357398908,1744043464574,-500.0,0.00027945,7]
[357398909,1744043464583,-504.4,0.00027945,7]
[357398910,1744043464593,-500.0,0.00027945,7]
[357398911,1744043464603,-500.0,0.00027945,7]
[357398912,1744043464612,-500.0,0.00027945,7]
[357398913,1744043464623,-500.0,0.00027945,7]
[357398914,1744043464633,-500.0,0.00027945,7]
[357398915,1744043464643,-653.51,0.00027945,7]
[357398916,1744043464654,-500.0,0.00027945,7]
[357398917,1744043464664,-1251.36,0.00027945,7]
[357398918,1744043464673,-500.0,0.00027945,7]
[357398919,1744043464683,-500.0,0.00027945,7]
[357398920,1744043464693,-500.0,0.00027945,7]
[357398921,1744043464702,-500.0,0.00027945,7]
[357398922,1744043464712,-380.6031143,0.00027945,7]
[357398923,1744043464722,-500.0,0.00027945,7]
[357398924,1744043464731,-1097.07,0.00027945,7]
[357398925,1744043464741,-500.0,0.00027945,7]
[357398926,1744043464751,-500.0,0.00027945,7]
[357398927,1744043464761,-500.0,0.00027945,7]
[357398928,1744043464770,-1674.22,0.00027945,7]
[357398929,1744043464780,-500.0,0.00027945,7]
[357398930,1744043464789,-1185.53,0.00027945,7]
[357398931,1744043464799,-368.24403318,0.00027945,7]
[357398932,1744043464809,-2309.229021,0.00027945,7]
[357398933,1744043464818,-2309.229021,0.00027945,7]
[357398934,1744043464828,-2309.229016,0.00027945,7]
[357398935,1744043464837,-500.0,0.00027945,7]
[357398936,1744043464847,-500.0,0.00027945,7]
[357398937,1744043464856,-225.101779,0.00027945,7]
[357398938,1744043464866,-225.101779,0.00027945,7]
[357398939,1744043464876,-225.101779,0.00027945,7]
[357398940,1744043464885,-530.96,0.00027945,7]
[357398941,1744043464895,-554.07558245,0.00027945,7]
[357398942,1744043464909,-500.0,0.00027945,7]
[357398943,1744043464919,-500.0,0.00027945,7]
[357398944,1744043464929,-516.5015548,0.00027945,7]
[357398945,1744043464939,-225.101779,0.00027945,7]
[357398946,1744043464949,-500.0,0.00027945,7]
[357398947,1744043464958,-225.101779,0.00027945,7]
[357398948,1744043464968,-225.10176995,0.00027945,7]
[357398949,1744043464978,-500.0,0.00027945,7]
[357398950,1744043464987,-368.16067863,0.00027945,7]
[357398951,1744043464997,-2880.69,0.00027945,7]
[357398952,1744043465006,-1148.45,0.00027945,7]
[357398953,1744043465016,-500.0,0.00027945,7]
[357398954,1744043465026,-500.0,0.00027945,7]
[357398955,1744043465036,-500.0,0.00027945,7]
[357398956,1744043465046,-517.96,0.00027945,7]
[357398957,1744043465056,-500.0,0.00027945,7]
[357398958,1744043465065,-648.47,0.00027945,7]
[357398959,1744043465075,-280.34696185,0.00027945,7]
[357398960,1744043465084,-500.0,0.00027945,7]
[357398961,1744043465093,-500.0,0.00027945,7]
[357398962,1744043465103,-3601.7,0.00027945,2]
[357398963,1744043465112,-500.0,0.00027945,7]
[357398964,1744043465122,-975.47,0.00027945,7]
[357398965,1744043465131,-275.759653,0.00027945,7]
[357398966,1744043465141,-275.759653,0.00027945,7]
[357398967,1744043465151,-275.759653,0.00027945,7]
[357398968,1744043465163,-500.0,0.00027945,7]
[357398969,1744043465172,-275.759653,0.00027945,7]
[357398970,1744043465182,-275.759653,0.00027945,7]
[357398971,1744043465192,-889.71,0.00027945,7]
[357398972,1744043465201,-275.759645,0.00027945,7]